fUST/lending_fUST_20240516
["ID","MTS","AMOUNT","RATE_DAILY","PERIOD"]
[327169730,1715872245013,-288.99168605,0.00016438,2]
[327169732,1715872245022,-500.0,0.00016438,2]
[327169734,1715872245034,-564.85,0.00016438,2]
[327169736,1715872245043,-500.0,0.00016438,2]
[327169738,1715872245052,-500.0,0.00016438,2]
[327169740,1715872245061,-14970.55,0.00016438,2]
[327169742,1715872245070,-500.0,0.00016438,2]
[327169744,1715872245079,-500.0,0.00016438,2]
[327169745,1715872245087,-870.42,0.00016438,2]
[327169747,1715872245096,-500.0,0.00016438,2]
[327169749,1715872245105,-9348.96,0.00016438,2]
[327169751,1715872245114,-500.0,0.00016438,2]
[327169753,1715872245124,-500.0,0.00016438,2]
[327169755,1715872245133,-151.0,0.00016438,2]
[327169757,1715872245143,-151.0,0.00016438,2]
[327169759,1715872245153,-151.0,0.00016438,2]
[327169761,1715872245162,-151.0,0.00016438,2]
[327169763,1715872245171,-5147.06,0.00016438,2]
[327169765,1715872245180,-500.0,0.00016438,2]
[327169767,1715872245189,-1224.05,0.00016438,2]
[327169769,1715872245199,-914.62,0.00016438,2]
[327169771,1715872245208,-500.0,0.00016438,2]
[327169773,1715872245218,-500.0,0.00016438,2]
[327169775,1715872245227,-500.0,0.00016438,2]
[327169777,1715872245237,-522.94149242,0.00016438,2]
[327169779,1715872245246,-6827.55,0.00016438,2]
[327169781,1715872245255,-708.41,0.00016438,2]
[327169783,1715872245263,-500.0,0.00016438,2]
[327169785,1715872245273,-500.0,0.00016438,2]
[327169787,1715872245283,-151.546344,0.00016438,2]
[327169789,1715872245292,-500.0,0.00016438,2]
[327169791,1715872245301,-151.0,0.00016438,2]
[327169793,1715872245311,-151.0,0.00016438,2]
[327169795,1715872245320,-500.0,0.00016438,2]
[327169797,1715872245330,-151.0,0.00016438,2]
[327169799,1715872245339,-151.0,0.00016438,2]
[327169801,1715872245348,-500.0,0.00016438,2]
[327169803,1715872245358,-500.0,0.00016438,2]
[327169805,1715872245367,-451.13915628,0.00016438,2]
[327169807,1715872245376,-500.0,0.00016438,2]
[327169809,1715872245387,-500.0,0.00016438,2]
[327169811,1715872245396,-1067.21,0.00016438,2]
[327169813,1715872245405,-4111.06,0.00016438,2]
[327169815,1715872245415,-2586.02,0.00016438,2]
[327169817,1715872245423,-500.0,0.00016438,2]
[327169819,1715872245433,-786.76,0.00016438,2]
[327169821,1715872245442,-2534.47,0.00016438,2]
[327169823,1715872245451,-2635.22,0.00016438,2]
[327169825,1715872245461,-1249.815446,0.00016438,2]
[327169827,1715872245470,-1249.815446,0.00016438,2]
[327169829,1715872245480,-373.37983889,0.00016438,2]
[327169831,1715872245489,-500.0,0.00016438,2]
[327169833,1715872245499,-1249.815446,0.00016438,2]
[327169836,1715872245509,-1249.815446,0.00016438,2]
[327169838,1715872245518,-1588.79,0.00016438,2]
[327169839,1715872245527,-151.0,0.00016438,2]
[327169841,1715872245537,-1249.815446,0.00016438,2]
[327169843,1715872245546,-151.0,0.00016438,2]
[327169846,1715872245556,-500.0,0.00016438,2]
[327169848,1715872245565,-1249.815446,0.00016438,2]
[327169850,1715872245574,-151.0,0.00016438,2]
[327169852,1715872245584,-151.0,0.00016438,2]
[327169854,1715872245593,-1249.815446,0.00016438,2]
[327169856,1715872245602,-500.0,0.00016438,2]
[327169858,1715872245612,-1933.06,0.00016438,2]
[327169860,1715872245622,-1249.815446,0.00016438,2]
[327169862,1715872245631,-500.0,0.00016438,2]
[327169864,1715872245642,-151.0,0.00016438,2]
[327169866,1715872245651,-151.0,0.00016438,2]
[327169868,1715872245661,-151.0,0.00016438,2]
[327169870,1715872245670,-160.79235,0.00016438,2]
[327169872,1715872245680,-500.0,0.00016438,2]
[327169874,1715872245689,-151.0,0.00016438,2]
[327169876,1715872245698,-151.0,0.00016438,2]
[327169878,1715872245707,-151.0,0.00016438,2]
[327169880,1715872245716,-151.0,0.00016438,2]
[327169882,1715872245725,-4812.12,0.00016438,2]
[327169884,1715872245734,-500.0,0.00016438,2]
[327169886,1715872245743,-500.0,0.00016438,2]
[327169888,1715872245753,-500.0,0.00016438,2]
[327169890,1715872245762,-1328.77,0.00016438,2]
[327169892,1715872245771,-500.0,0.00016438,2]
[327169894,1715872245780,-1444.37,0.00016438,2]
[327169896,1715872245790,-151.0,0.00016438,2]
[327169898,1715872245801,-500.0,0.00016438,2]
[327169900,1715872245809,-286.015299,0.00016438,2]
[327169902,1715872245819,-500.0,0.00016438,2]
[327169904,1715872245828,-178.906362,0.00016438,2]
[327169905,1715872245837,-367.3592041,0.000165,2]
[327169906,1715872245846,-153.0,0.000165,2]
[327169907,1715872245856,-153.0,0.000165,2]
[327169908,1715872245865,-153.0,0.000165,2]
[327169909,1715872245874,-4007.73932766,0.00016512,2]
[327169910,1715872245883,-407.82035509,0.00016544,2]
[327169911,1715872245892,-153.0,0.000166,2]
[327169912,1715872245902,-153.0,0.000167,2]
[327169913,1715872245912,-153.0,0.000167,2]
[327169914,1715872245921,-153.0,0.000167,2]
[327169915,1715872245931,-153.0,0.000167,2]
[327169916,1715872245940,-153.0,0.000167,2]
[327169917,1715872245954,-153.0,0.000167,2]
[327169918,1715872245963,-153.0,0.000167,2]
[327169919,1715872245972,-153.0,0.000167,2]
[327169920,1715872245982,-153.0,0.000167,2]
[327169921,1715872245994,-151.0,0.000167,2]
[327169922,1715872246003,-163.62820211,0.00016711,2]
[327169923,1715872246012,-500.0,0.00016712,2]
[327169924,1715872246022,-645.67861542,0.00016712,2]
[327169926,1715872246032,-527.19,0.00016712,2]
[327169928,1715872246041,-500.0,0.00016712,2]
[327169930,1715872246051,-500.0,0.00016712,2]
[327169932,1715872246060,-500.0,0.00016712,2]
[327169933,1715872246069,-500.0,0.00016712,2]
[327169934,1715872246078,-500.0,0.00016712,2]
[327169936,1715872246088,-666.6,0.00016712,2]
[327169938,1715872246097,-500.0,0.00016712,2]
[327169939,1715872246106,-500.0,0.00016712,2]
[327169941,1715872246115,-500.0,0.00016712,2]
[327169943,1715872246124,-500.0,0.00016712,2]
[327169945,1715872246133,-518.33,0.00016712,2]
[327169947,1715872246142,-212.47657497,0.00016712,2]
[327169949,1715872246152,-517.6,0.00016712,2]
[327169951,1715872246161,-500.0,0.00016712,2]
[327169953,1715872246170,-500.0,0.00016712,2]
[327169955,1715872246179,-500.0,0.00016712,2]
[327169957,1715872246188,-1288.28,0.00016712,2]
[327169959,1715872246200,-500.0,0.00016712,2]
[327169961,1715872246211,-557.54,0.00016712,2]
[327169963,1715872246220,-500.0,0.00016712,2]
[327169965,1715872246229,-500.0,0.00016712,2]
[327169967,1715872246240,-500.0,0.00016712,2]
[327169969,1715872246250,-688.34,0.00016712,2]
[327169971,1715872246260,-500.0,0.00016712,2]
[327169973,1715872246270,-500.0,0.00016712,2]
[327169975,1715872246279,-497.16,0.00016712,2]
[327169977,1715872246289,-500.0,0.00016712,4]
[327169979,1715872246297,-500.0,0.00016712,2]
[327169981,1715872246307,-500.0,0.00016712,2]
[327169983,1715872246316,-500.0,0.00016712,2]
[327169985,1715872246327,-500.0,0.00016712,2]
[327169986,1715872246336,-500.0,0.00016712,2]
[327169987,1715872246346,-500.0,0.00016712,2]
[327169988,1715872246357,-500.0,0.00016712,2]
[327169989,1715872246367,-530.1,0.00016712,2]
[327169990,1715872246380,-500.0,0.00016712,2]
[327169991,1715872246389,-500.0,0.00016712,2]
[327169993,1715872246399,-500.0,0.00016712,2]
[327169995,1715872246409,-500.0,0.00016712,2]
[327169997,1715872246419,-500.0,0.00016712,2]
[327169999,1715872246428,-500.0,0.00016712,2]
[327170001,1715872246439,-500.0,0.00016712,2]
[327170003,1715872246449,-500.0,0.00016712,2]
[327170004,1715872246460,-500.0,0.00016712,2]
[327170006,1715872246469,-500.0,0.00016712,2]
[327170009,1715872246481,-500.0,0.00016712,2]
[327170010,1715872246491,-500.0,0.00016712,2]
[327170012,1715872246500,-500.0,0.00016712,2]
[327170014,1715872246510,-563.44,0.00016712,2]
[327170016,1715872246519,-500.0,0.00016712,2]
[327170018,1715872246529,-500.0,0.00016712,2]
[327170020,1715872246538,-717.98,0.00016712,2]
[327170022,1715872246547,-3028.19,0.00016712,2]
[327170024,1715872246556,-1447.74,0.00016712,2]
[327170026,1715872246566,-816.92,0.00016712,2]
[327170028,1715872246575,-589.36,0.00016712,2]
[327170030,1715872246584,-1033.12,0.00016712,2]
[327170032,1715872246594,-500.0,0.00016712,2]
[327170034,1715872246603,-500.0,0.00016712,2]
[327170036,1715872246612,-501.02,0.00016712,2]
[327170038,1715872246621,-500.0,0.00016712,2]
[327170059,1715872246781,-500.0,0.00016712,2]
[327170061,1715872246791,-500.0,0.00016712,2]
[327170063,1715872246800,-500.0,0.00016712,2]
[327170065,1715872246810,-1263.19,0.00016712,2]
[327170067,1715872246819,-151.0,0.00016712,2]
[327170069,1715872246828,-151.0,0.00016712,2]
[327170071,1715872246837,-151.0,0.00016712,2]
[327170073,1715872246846,-151.0,0.00016712,2]
[327170075,1715872246856,-1496.4,0.00016712,2]
[327170077,1715872246864,-183.401591,0.00016712,2]
[327170079,1715872246874,-500.0,0.00016712,2]
[327170081,1715872246882,-827.93,0.00016712,2]
[327170083,1715872246892,-500.0,0.00016712,2]
[327170085,1715872246901,-500.0,0.00016712,2]
[327170087,1715872246910,-500.0,0.00016712,2]
[327170089,1715872246919,-543.75,0.00016712,2]
[327170091,1715872246928,-500.0,0.00016712,2]
[327170093,1715872246937,-500.0,0.00016712,2]
[327170095,1715872246949,-500.0,0.00016712,2]
[327170097,1715872246959,-1223.42,0.00016712,2]
[327170099,1715872246968,-1265.32,0.00016712,2]
[327170101,1715872246978,-538.36,0.00016712,2]
[327170103,1715872246988,-1121.25,0.00016712,2]
[327170105,1715872246998,-500.0,0.00016712,2]
[327170107,1715872247007,-624.44,0.00016712,2]
[327170109,1715872247016,-802.47,0.00016712,2]
[327170111,1715872247026,-500.0,0.00016712,2]
[327170113,1715872247038,-759.69,0.00016712,2]
[327170115,1715872247047,-690.01,0.00016712,2]
[327170117,1715872247056,-500.0,0.00016712,2]
[327170119,1715872247065,-500.0,0.00016712,2]
[327170121,1715872247074,-607.26,0.00016712,2]
[327170123,1715872247083,-500.0,0.00016712,2]
[327170125,1715872247092,-500.0,0.00016712,2]
[327170127,1715872247102,-500.0,0.00016712,2]
[327170129,1715872247111,-500.0,0.00016712,2]
[327170131,1715872247120,-500.0,0.00016712,2]
[327170133,1715872247130,-1037.8,0.00016712,2]
[327170135,1715872247139,-500.0,0.00016712,2]
[327170137,1715872247148,-1001.19,0.00016712,2]
[327170139,1715872247157,-1158.68,0.00016712,2]
[327170141,1715872247167,-500.0,0.00016712,2]
[327170143,1715872247176,-500.0,0.00016712,2]
[327170145,1715872247185,-519.3,0.00016712,2]
[327170147,1715872247194,-500.0,0.00016712,2]
[327170149,1715872247203,-500.0,0.00016712,2]
[327170151,1715872247213,-500.0,0.00016712,2]
[327170153,1715872247222,-669.88,0.00016712,2]
[327170155,1715872247231,-500.0,0.00016712,2]
[327170157,1715872247241,-500.0,0.00016712,2]
[327170159,1715872247250,-258.73074023,0.00016712,2]
[327170162,1715872247267,-241.26925977,0.00016712,2]
[327170164,1715872247276,-500.0,0.00016712,2]
[327170166,1715872247285,-354.06902005,0.00016712,2]
[327170168,1715872247297,-360.25097995,0.00016712,2]
[327170170,1715872247306,-500.0,0.00016712,2]
[327170171,1715872247315,-500.0,0.00016712,2]
[327170172,1715872247325,-1121.92,0.00016712,2]
[327170173,1715872247334,-946.76,0.00016712,2]
[327170174,1715872247343,-500.0,0.00016712,2]
[327170175,1715872247353,-2040.45,0.00016712,2]
[327170176,1715872247363,-2085.2,0.00016712,2]
[327170177,1715872247372,-500.0,0.00016712,2]
[327170178,1715872247382,-500.0,0.00016712,2]
[327170179,1715872247391,-1283.57,0.00016712,2]
[327170180,1715872247400,-500.0,0.00016712,2]
[327170181,1715872247410,-500.0,0.00016712,2]
[327170182,1715872247419,-630.38,0.00016712,2]
[327170183,1715872247428,-500.0,0.00016712,2]
[327170184,1715872247437,-500.0,0.00016712,2]
[327170185,1715872247447,-529.58,0.00016712,2]
[327170186,1715872247456,-1000.0,0.00016712,2]
[327170187,1715872247465,-500.07,0.00016712,2]
[327170188,1715872247474,-500.0,0.00016712,2]
[327170189,1715872247484,-500.0,0.00016712,2]
[327170191,1715872247494,-3932.1,0.00016712,2]
[327170193,1715872247503,-1516.16,0.00016712,2]
[327170195,1715872247513,-500.0,0.00016712,2]
[327170197,1715872247522,-500.0,0.00016712,2]
[327170199,1715872247532,-1338.06,0.00016712,2]
[327170201,1715872247542,-500.0,0.00016712,2]
[327170203,1715872247551,-500.0,0.00016712,2]
[327170205,1715872247561,-2424.93,0.00016712,2]
[327170207,1715872247571,-1000.0,0.00016712,2]
[327170209,1715872247580,-500.0,0.00016712,2]
[327170211,1715872247589,-500.0,0.00016712,2]
[327170213,1715872247599,-1067.71,0.00016712,2]
[327170215,1715872247608,-500.0,0.00016712,2]
[327170217,1715872247618,-500.0,0.00016712,2]
[327170219,1715872247628,-1032.21,0.00016712,2]
[327170221,1715872247637,-500.0,0.00016712,2]
[327170223,1715872247647,-585.77,0.00016712,2]
[327170225,1715872247656,-995.02,0.00016712,2]
[327170227,1715872247665,-500.0,0.00016712,2]
[327170229,1715872247674,-500.0,0.00016712,2]
[327170231,1715872247684,-500.0,0.00016712,2]
[327170233,1715872247693,-772.64,0.00016712,2]
[327170235,1715872247702,-500.0,0.00016712,2]
[327170237,1715872247712,-3521.27,0.00016712,2]
[327170239,1715872247721,-477.06237414,0.00016712,2]
[327170241,1715872247731,-620.15,0.00016712,2]
[327170243,1715872247743,-1068.36,0.00016712,2]
[327170245,1715872247752,-500.0,0.00016712,2]
[327170247,1715872247761,-500.0,0.00016712,2]
[327170249,1715872247770,-500.0,0.00016712,2]
[327170251,1715872247781,-500.0,0.00016712,2]
[327170253,1715872247791,-500.0,0.00016712,2]
[327170255,1715872247803,-500.0,0.00016712,2]
[327170257,1715872247812,-500.0,0.00016712,2]
[327170259,1715872247822,-151.0,0.00016712,2]
[327170261,1715872247831,-500.0,0.00016712,2]
[327170263,1715872247841,-151.0,0.00016712,2]
[327170265,1715872247850,-151.0,0.00016712,2]
[327170267,1715872247860,-151.0,0.00016712,2]
[327170269,1715872247869,-151.0,0.00016712,2]
[327170271,1715872247879,-4066.3,0.00016712,2]
[327170273,1715872247888,-610.64,0.00016712,2]
[327170275,1715872247897,-556.11,0.00016712,2]
[327170277,1715872247907,-500.0,0.00016712,2]
[327170279,1715872247916,-500.0,0.00016712,2]
[327170281,1715872247925,-1687.07,0.00016712,2]
[327170283,1715872247935,-500.0,0.00016712,2]
[327170285,1715872247944,-946.82,0.00016712,2]
[327170287,1715872247957,-544.46,0.00016712,2]
[327170289,1715872247966,-1605.98,0.00016712,2]
[327170291,1715872247975,-500.0,0.00016712,2]
[327170293,1715872247984,-508.93,0.00016712,2]
[327170295,1715872247996,-500.0,0.00016712,2]
[327170297,1715872248005,-500.0,0.00016712,2]
[327170299,1715872248015,-500.0,0.00016712,2]
[327170301,1715872248024,-897.6,0.00016712,2]
[327170303,1715872248035,-500.0,0.00016712,2]
[327170305,1715872248045,-512.12,0.00016712,2]
[327170307,1715872248056,-575.53,0.00016712,2]
[327170309,1715872248066,-920.27,0.00016712,2]
[327170311,1715872248076,-500.0,0.00016712,2]
[327170313,1715872248085,-500.0,0.00016712,2]
[327170315,1715872248095,-2387.75,0.00016712,2]
[327170317,1715872248105,-500.0,0.00016712,2]
[327170319,1715872248114,-674.36,0.00016712,2]
[327170321,1715872248124,-2035.68,0.00016712,2]
[327170323,1715872248134,-500.0,0.00016712,2]
[327170325,1715872248143,-797.23,0.00016712,2]
[327170327,1715872248153,-500.0,0.00016712,2]
[327170329,1715872248162,-5268.11,0.00016712,2]
[327170331,1715872248172,-500.0,0.00016712,2]
[327170333,1715872248182,-500.0,0.00016712,2]
[327170335,1715872248191,-500.0,0.00016712,2]
[327170337,1715872248200,-500.0,0.00016712,2]
[327170339,1715872248209,-2497.64,0.00016712,2]
[327170341,1715872248219,-1483.29,0.00016712,2]
[327170343,1715872248228,-4507.73,0.00016712,2]
[327170345,1715872248238,-500.0,0.00016712,2]
[327170347,1715872248247,-500.0,0.00016712,2]
[327170349,1715872248257,-206.13833,0.00016712,2]
[327170351,1715872248267,-206.13833,0.00016712,2]
[327170353,1715872248276,-529.37582606,0.00016712,2]
[327170355,1715872248286,-206.13833,0.00016712,2]
[327170357,1715872248295,-206.13833,0.00016712,2]
[327170359,1715872248305,-206.13833,0.00016712,2]
[327170362,1715872248315,-206.13833,0.00016712,2]
[327170364,1715872248326,-500.0,0.00016712,2]
[327170366,1715872248336,-206.13833,0.00016712,2]
[327170367,1715872248345,-500.0,0.00016712,2]
[327170370,1715872248355,-206.13833,0.00016712,2]
[327170371,1715872248364,-206.13833,0.00016712,2]
[327170373,1715872248374,-206.13833,0.00016712,2]
[327170375,1715872248383,-500.0,0.00016712,2]
[327170377,1715872248392,-2877.84,0.00016712,2]
[327170379,1715872248402,-206.13833,0.00016712,2]
[327170382,1715872248411,-206.13832,0.00016712,2]
[327170384,1715872248422,-500.0,0.00016712,2]
[327170386,1715872248432,-604.63,0.00016712,2]
[327170388,1715872248441,-822.07,0.00016712,2]
[327170390,1715872248450,-939.83,0.00016712,2]
[327170392,1715872248459,-500.0,0.00016712,2]
[327170394,1715872248469,-723.53,0.00016712,2]
[327170396,1715872248478,-151.0,0.00016712,2]
[327170397,1715872248487,-151.0,0.00016712,2]
[327170399,1715872248496,-2385.71,0.00016712,2]
[327170401,1715872248505,-500.0,0.00016712,2]
[327170403,1715872248514,-724.1,0.00016712,2]
[327170405,1715872248523,-975.72,0.00016712,2]
[327170407,1715872248532,-500.0,0.00016712,2]
[327170409,1715872248542,-199.336665,0.00016712,2]
[327170411,1715872248551,-199.336665,0.00016712,2]
[327170413,1715872248561,-199.336665,0.00016712,2]
[327170415,1715872248570,-199.336665,0.00016712,2]
[327170417,1715872248580,-199.336665,0.00016712,2]
[327170419,1715872248590,-500.0,0.00016712,2]
[327170421,1715872248599,-199.336665,0.00016712,2]
[327170424,1715872248609,-500.0,0.00016712,2]
[327170426,1715872248618,-199.336665,0.00016712,2]
[327170427,1715872248627,-199.336665,0.00016712,2]
[327170430,1715872248638,-199.336665,0.00016712,2]
[327170431,1715872248647,-199.336665,0.00016712,2]
[327170433,1715872248655,-539.83,0.00016712,2]
[327170436,1715872248665,-199.336665,0.00016712,2]
[327170438,1715872248675,-500.0,0.00016712,2]
[327170440,1715872248684,-199.336666,0.00016712,2]
[327170442,1715872248694,-500.0,0.00016712,2]
[327170443,1715872248703,-1708.18,0.00016712,2]
[327170446,1715872248714,-500.0,0.00016712,2]
[327170448,1715872248724,-500.0,0.00016712,2]
[327170449,1715872248733,-151.0,0.00016712,2]
[327170451,1715872248743,-151.0,0.00016712,2]
[327170453,1715872248753,-151.0,0.00016712,2]
[327170455,1715872248763,-151.0,0.00016712,2]
[327170457,1715872248774,-151.0,0.00016712,2]
[327170459,1715872248783,-151.0,0.00016712,2]
[327170461,1715872248794,-500.0,0.00016712,2]
[327170463,1715872248803,-2449.71,0.00016712,2]
[327170465,1715872248813,-822.9,0.00016712,2]
[327170467,1715872248822,-500.0,0.00016712,2]
[327170469,1715872248831,-2653.83,0.00016712,2]
[327170472,1715872248841,-500.0,0.00016712,2]
[327170473,1715872248851,-570.6247994,0.00016712,2]
[327170475,1715872248860,-500.0,0.00016712,2]
[327170477,1715872248869,-1058.32,0.00016712,2]
[327170479,1715872248879,-1024.37,0.00016712,2]
[327170482,1715872248889,-2296.84999,0.00016712,2]
[327170484,1715872248898,-1324.34,0.00016712,2]
[327170486,1715872248907,-480.2754608,0.00016712,2]
[327170488,1715872248923,-1816.5745292,0.00016712,2]
[327170490,1715872248933,-2296.84999,0.00016712,2]
[327170492,1715872248942,-1786.57548084,0.00016712,2]
[327170495,1715872248957,-510.27450916,0.00016712,2]
[327170497,1715872248966,-2296.84999,0.00016712,2]
[327170499,1715872248975,-2296.84999,0.00016712,2]
[327170501,1715872248985,-199.44251243,0.00016712,2]
[327170582,1715872249860,-1515.0933735,0.00015323,2]
[327170583,1715872249869,-9.50792329,0.00016438,2]
[327170585,1715872249881,-490.49207671,0.00016438,2]
[327170587,1715872249891,-178.906362,0.00016438,2]
[327170589,1715872249900,-178.906362,0.00016438,2]
[327170591,1715872249909,-178.906362,0.00016438,2]
[327170593,1715872249919,-500.0,0.00016438,2]
[327170595,1715872249928,-178.906362,0.00016438,2]
[327170596,1715872249937,-178.906362,0.00016438,2]
[327170598,1715872249947,-178.906362,0.00016438,2]
[327170600,1715872249963,-178.906362,0.00016438,2]
[327170602,1715872249974,-2097.40747757,0.00016712,2]
[327170604,1715872249983,-2296.84999,0.00016712,2]
[327170606,1715872249994,-2296.84999,0.00016712,2]
[327170608,1715872250003,-4448.65,0.00016712,2]
[327170609,1715872250012,-2296.84999,0.00016712,2]
[327170611,1715872250024,-500.0,0.00016712,2]
[327170613,1715872250036,-2296.84999,0.00016712,2]
[327170615,1715872250046,-2296.84999,0.00016712,2]
[327170617,1715872250055,-500.0,0.00016712,2]
[327170619,1715872250065,-500.0,0.00016712,2]
[327170620,1715872250075,-536.86,0.00016712,2]
[327170621,1715872250086,-500.0,0.00016712,2]
[327170622,1715872250095,-500.0,0.00016712,2]
[327170623,1715872250104,-500.0,0.00016712,2]
[327170624,1715872250114,-3035.87768091,0.00016712,2]
[327170625,1715872250128,-6578.59806329,0.00016712,2]
[327170626,1715872250214,-8.48104199,0.00016712,2]
[327170627,1715872250228,-53960.16321381,0.00016712,2]
[327170628,1715872250237,-1949.52,0.00016712,2]
[327170629,1715872250247,-579.15,0.00016712,2]
[327170630,1715872250257,-564.85,0.00016712,2]
[327170631,1715872250266,-500.0,0.00016712,2]
[327170632,1715872250276,-14970.55,0.00016712,2]
[327170633,1715872250286,-870.42,0.00016712,2]
[327170634,1715872250295,-500.0,0.00016712,2]
[327170635,1715872250305,-9348.96,0.00016712,2]
[327170636,1715872250315,-500.0,0.00016712,2]
[327170637,1715872250324,-500.0,0.00016712,2]
[327170638,1715872250334,-151.0,0.00016712,2]
[327170639,1715872250344,-151.0,0.00016712,2]
[327170640,1715872250354,-151.0,0.00016712,2]
[327170641,1715872250364,-5147.06,0.00016712,2]
[327170642,1715872250373,-500.0,0.00016712,2]
[327170643,1715872250382,-1224.05,0.00016712,2]
[327170644,1715872250391,-914.62,0.00016712,2]
[327170645,1715872250401,-500.0,0.00016712,2]
[327170646,1715872250410,-231.80156489,0.00016712,2]
[327170647,1715872250419,-500.0,0.00016712,2]
[327170648,1715872250430,-6827.55,0.00016712,2]
[327170649,1715872250439,-708.41,0.00016712,2]
[327170650,1715872250449,-500.0,0.00016712,2]
[327170651,1715872250458,-500.0,0.00016712,2]
[327170652,1715872250467,-500.0,0.00016712,2]
[327170653,1715872250476,-500.0,0.00016712,2]
[327170654,1715872250485,-500.0,0.00016712,2]
[327170655,1715872250497,-151.0,0.00016712,2]
[327170656,1715872250506,-500.0,0.00016712,2]
[327170657,1715872250516,-500.0,0.00016712,2]
[327170658,1715872250524,-500.0,0.00016712,2]
[327170659,1715872250534,-1067.21,0.00016712,2]
[327170660,1715872250543,-4111.06,0.00016712,2]
[327170661,1715872250553,-2586.02,0.00016712,2]
[327170662,1715872250563,-500.0,0.00016712,2]
[327170663,1715872250573,-2534.47,0.00016712,2]
[327170664,1715872250582,-786.76,0.00016712,2]
[327170665,1715872250592,-2635.22,0.00016712,2]
[327170666,1715872250601,-500.0,0.00016712,2]
[327170667,1715872250611,-1249.815446,0.00016712,2]
[327170668,1715872250620,-1249.815446,0.00016712,2]
[327170669,1715872250630,-1588.79,0.00016712,2]
[327170670,1715872250639,-1249.815446,0.00016712,2]
[327170671,1715872250648,-1249.815446,0.00016712,2]
[327170672,1715872250658,-1249.815446,0.00016712,2]
[327170673,1715872250668,-1249.815446,0.00016712,2]
[327170674,1715872250679,-500.0,0.00016712,2]
[327170675,1715872250688,-500.0,0.00016712,2]
[327170676,1715872250697,-151.0,0.00016712,2]
[327170677,1715872250707,-1933.06,0.00016712,2]
[327170678,1715872250717,-500.0,0.00016712,2]
[327170679,1715872250726,-1249.815446,0.00016712,2]
[327170680,1715872250735,-151.0,0.00016712,2]
[327170681,1715872250748,-1249.815446,0.00016712,2]
[327170682,1715872250757,-1249.815446,0.00016712,2]
[327170683,1715872250767,-1249.815446,0.00016712,2]
[327170684,1715872250776,-1249.815446,0.00016712,2]
[327170685,1715872250786,-1249.815439,0.00016712,2]
[327170686,1715872250796,-500.0,0.00016712,2]
[327170687,1715872250806,-151.0,0.00016712,2]
[327170688,1715872250815,-152.028182,0.00016712,2]
[327170689,1715872250824,-4812.12,0.00016712,2]
[327170690,1715872250834,-500.0,0.00016712,2]
[327170691,1715872250843,-500.0,0.00016712,2]
[327170692,1715872250853,-1328.77,0.00016712,2]
[327170693,1715872250863,-500.0,0.00016712,2]
[327170694,1715872250872,-1444.37,0.00016712,2]
[327170695,1715872250882,-500.0,0.00016712,2]
[327170696,1715872250891,-500.0,0.00016712,2]
[327170697,1715872250901,-178.906362,0.00016712,2]
[327170698,1715872250910,-178.906362,0.00016712,2]